fUSD/lending_fUSD_20250530
["ID","MTS","AMOUNT","RATE_DAILY","PERIOD"]
[363070036,1748566250912,-420.0,0.00022191,2]
[363070038,1748566250922,-194.88997209,0.00022191,2]
[363070040,1748566250932,-527.17,0.00022191,2]
[363070042,1748566250942,-420.0,0.00022191,2]
[363070044,1748566250952,-420.0,0.00022191,2]
[363070046,1748566250962,-420.0,0.00022191,2]
[363070048,1748566250972,-420.0,0.00022191,2]
[363070050,1748566250983,-420.0,0.00022191,2]
[363070052,1748566250994,-420.0,0.00022191,2]
[363070054,1748566251005,-420.0,0.00022191,2]
[363070056,1748566251015,-420.0,0.00022191,2]
[363070059,1748566251025,-235.19249595,0.00022191,2]
[363070061,1748566251035,-420.0,0.00022191,2]
[363070063,1748566251045,-593.75,0.00022191,2]
[363070065,1748566251056,-420.0,0.00022191,2]
[363070067,1748566251066,-564.09,0.00022191,2]
[363070069,1748566251076,-420.0,0.00022191,2]
[363070071,1748566251086,-420.0,0.00022191,2]
[363070073,1748566251096,-570.82,0.00022191,2]
[363070075,1748566251107,-420.0,0.00022191,2]
[363070077,1748566251119,-420.0,0.00022191,2]
[363070079,1748566251133,-549.03,0.00022191,2]
[363070081,1748566251142,-792.7,0.00022191,2]
[363070083,1748566251152,-420.0,0.00022191,2]
[363070086,1748566251162,-420.0,0.00022191,2]
[363070088,1748566251172,-1857.46058,0.00022191,2]
[363070090,1748566251182,-1733.318007,0.00022191,2]
[363070092,1748566251193,-420.0,0.00022191,2]
[363070094,1748566251203,-480.66,0.00022191,2]
[363070096,1748566251213,-420.0,0.00022191,2]
[363070098,1748566251222,-1628.45,0.00022191,2]
[363070100,1748566251232,-499.7,0.00022191,2]
[363070102,1748566251242,-420.0,0.00022191,2]
[363070104,1748566251252,-420.0,0.00022191,2]
[363070106,1748566251262,-428.01644211,0.00022191,2]
[363070108,1748566251274,-420.0,0.00022191,2]
[363070110,1748566251285,-420.0,0.00022191,2]
[363070112,1748566251296,-734.38,0.00022191,2]
[363070114,1748566251307,-420.0,0.00022191,2]
[363070116,1748566251317,-318.78481086,0.00022191,2]
[363070117,1748566251327,-589.37,0.00022191,2]
[363070118,1748566251337,-978.23,0.00022191,2]
[363070119,1748566251348,-513.24,0.00022191,2]
[363070120,1748566251358,-420.0,0.00022191,2]
[363070121,1748566251373,-420.0,0.00022191,2]
[363070122,1748566251383,-420.0,0.00022191,2]
[363070123,1748566251394,-1107.87,0.00022191,2]
[363070124,1748566251404,-420.0,0.00022191,2]
[363070125,1748566251414,-1294.45,0.00022191,2]
[363070127,1748566251425,-600.34,0.00022191,2]
[363070129,1748566251434,-526.12,0.00022191,2]
[363070131,1748566251444,-420.0,0.00022191,2]
[363070133,1748566251454,-1392.48,0.00022191,2]
[363070135,1748566251464,-423.51488268,0.00022191,2]
[363070137,1748566251474,-420.0,0.00022191,2]
[363070139,1748566251484,-420.0,0.00022191,2]
[363070141,1748566251494,-1330.59,0.00022191,2]
[363070143,1748566251503,-420.0,0.00022191,2]
[363070145,1748566251514,-523.84,0.00022191,2]
[363070147,1748566251524,-1325.16,0.00022191,2]
[363070148,1748566251533,-1820.45,0.00022191,2]
[363070149,1748566251544,-817.89,0.00022191,2]
[363070150,1748566251554,-741.14,0.00022191,2]
[363070151,1748566251564,-420.0,0.00022191,2]
[363070152,1748566251574,-420.0,0.00022191,2]
[363070153,1748566251587,-1121.05,0.00022191,2]
[363070154,1748566251597,-420.0,0.00022191,2]
[363070155,1748566251607,-420.0,0.00022191,2]
[363070156,1748566251631,-857.17,0.00022191,2]
[363070158,1748566251640,-420.0,0.00022191,2]
[363070160,1748566251650,-1567.15,0.00022191,2]
[363070162,1748566251660,-420.0,0.00022191,2]
[363070164,1748566251670,-420.0,0.00022191,2]
[363070165,1748566251680,-554.13,0.00022191,2]
[363070167,1748566251690,-420.0,0.00022191,2]
[363070168,1748566251699,-729.4,0.00022191,2]
[363070169,1748566251709,-420.0,0.00022191,2]
[363070170,1748566251719,-1472.36,0.00022191,2]
[363070171,1748566251729,-533.36,0.00022191,2]
[363070172,1748566251739,-503.53,0.00022191,2]
[363070173,1748566251748,-420.0,0.00022191,2]
[363070174,1748566251757,-419.11861666,0.00022191,2]
[363070175,1748566251767,-420.0,0.00022191,2]
[363070176,1748566251776,-904.28,0.00022191,2]
[363070177,1748566251785,-785.4,0.00022191,2]
[363070178,1748566251794,-698.44,0.00022191,2]
[363070179,1748566251803,-420.0,0.00022191,2]
[363070181,1748566251813,-1522.67,0.00022191,2]
[363070183,1748566251822,-420.0,0.00022191,2]
[363070185,1748566251832,-1355.29,0.00022191,2]
[363070187,1748566251841,-420.0,0.00022191,2]
[363070189,1748566251851,-678.66,0.00022191,2]
[363070191,1748566251860,-543.42,0.00022191,2]
[363070192,1748566251873,-420.0,0.00022191,2]
[363070193,1748566251882,-471.4,0.00022191,2]
[363070194,1748566251892,-1141.73,0.00022191,2]
[363070195,1748566251902,-420.0,0.00022191,2]
[363070196,1748566251912,-420.0,0.00022191,2]
[363070197,1748566251922,-663.68,0.00022191,2]
[363070198,1748566251932,-752.74,0.00022191,2]
[363070199,1748566251941,-420.0,0.00022191,2]
[363070200,1748566251951,-2296.67,0.00022191,2]
[363070201,1748566251961,-420.0,0.00022191,2]
[363070202,1748566251971,-1146.8,0.00022191,2]
[363070203,1748566251980,-637.04,0.00022191,2]
[363070204,1748566251989,-619.6,0.00022191,2]
[363070206,1748566251999,-1253.04,0.00022191,2]
[363070208,1748566252008,-452.08,0.00022191,2]
[363070210,1748566252017,-420.0,0.00022191,2]
[363070212,1748566252027,-420.0,0.00022191,2]
[363070214,1748566252036,-420.0,0.00022191,2]
[363070216,1748566252046,-910.46,0.00022191,2]
[363070218,1748566252056,-1469.29,0.00022191,2]
[363070220,1748566252066,-577.27,0.00022191,2]
[363070222,1748566252076,-699.43,0.00022191,2]
[363070224,1748566252085,-504.99,0.00022191,2]
[363070226,1748566252094,-451.91,0.00022191,2]
[363070228,1748566252103,-651.48,0.00022191,2]
[363070230,1748566252112,-420.0,0.00022191,2]
[363070232,1748566252124,-514.18,0.00022191,2]
[363070234,1748566252135,-420.0,0.00022191,2]
[363070236,1748566252145,-420.0,0.00022191,2]
[363070238,1748566252155,-420.0,0.00022191,2]
[363070240,1748566252165,-1913.53,0.00022191,2]
[363070242,1748566252174,-1763.55,0.00022191,2]
[363070244,1748566252184,-420.0,0.00022191,2]
[363070247,1748566252194,-420.0,0.00022191,2]
[363070249,1748566252204,-1268.52,0.00022191,2]
[363070251,1748566252214,-1092.38,0.00022191,2]
[363070253,1748566252224,-420.0,0.00022191,2]
[363070255,1748566252233,-420.0,0.00022191,2]
[363070257,1748566252243,-618.64,0.00022191,2]
[363070259,1748566252252,-420.0,0.00022191,2]
[363070261,1748566252262,-503.54,0.00022191,2]
[363070263,1748566252271,-745.45,0.00022191,2]
[363070265,1748566252281,-864.7,0.00022191,2]
[363070267,1748566252291,-420.0,0.00022191,2]
[363070269,1748566252301,-1163.2,0.00022191,2]
[363070271,1748566252311,-638.66,0.00022191,2]
[363070273,1748566252320,-420.0,0.00022191,2]
[363070275,1748566252329,-420.0,0.00022191,2]
[363070276,1748566252339,-420.0,0.00022191,2]
[363070277,1748566252350,-663.23,0.00022191,2]
[363070278,1748566252360,-723.57,0.00022191,2]
[363070279,1748566252370,-1329.68,0.00022191,2]
[363070280,1748566252380,-1465.51,0.00022191,2]
[363070281,1748566252390,-420.0,0.00022191,2]
[363070282,1748566252400,-498.73,0.00022191,2]
[363070283,1748566252410,-436.55,0.00022191,2]
[363070284,1748566252420,-420.0,0.00022191,2]
[363070285,1748566252431,-536.69,0.00022191,2]
[363070286,1748566252441,-1618.92,0.00022191,2]
[363070287,1748566252450,-1304.82,0.00022191,2]
[363070288,1748566252460,-497.3,0.00022191,2]
[363070289,1748566252471,-586.22,0.00022191,2]
[363070290,1748566252481,-420.0,0.00022191,2]
[363070291,1748566252491,-1374.56,0.00022191,2]
[363070292,1748566252502,-575.69,0.00022191,2]
[363070293,1748566252513,-727.27,0.00022191,2]
[363070294,1748566252522,-616.09,0.00022191,2]
[363070295,1748566252533,-1696.41,0.00022191,2]
[363070296,1748566252542,-757.04,0.00022191,2]
[363070298,1748566252552,-803.97,0.00022191,2]
[363070300,1748566252562,-1230.39,0.00022191,2]
[363070302,1748566252571,-420.0,0.00022191,2]
[363070304,1748566252582,-826.38,0.00022191,2]
[363070306,1748566252595,-574.02,0.00022191,2]
[363070308,1748566252606,-420.0,0.00022191,2]
[363070310,1748566252616,-2247.96,0.00022191,2]
[363070312,1748566252627,-591.65,0.00022191,2]
[363070314,1748566252636,-535.4,0.00022191,2]
[363070316,1748566252646,-500.8,0.00022191,2]
[363070318,1748566252655,-762.27,0.00022191,2]
[363070320,1748566252666,-429.41628734,0.00022191,2]
[363070322,1748566252676,-420.0,0.00022191,2]
[363070325,1748566252686,-865.96,0.00022191,2]
[363070327,1748566252696,-1254.33,0.00022191,2]
[363070329,1748566252706,-420.0,0.00022191,2]
[363070333,1748566252809,-455.62,0.00022191,2]
[363070334,1748566252819,-1475.65,0.00022191,2]
[363070335,1748566252829,-420.0,0.00022191,2]
[363070336,1748566252839,-604.68,0.00022191,2]
[363070337,1748566252849,-420.0,0.00022191,2]
[363070338,1748566252859,-420.0,0.00022191,2]
[363070339,1748566252871,-989.41,0.00022191,2]
[363070340,1748566252881,-420.0,0.00022191,2]
[363070341,1748566252891,-833.66,0.00022191,2]
[363070342,1748566252900,-420.0,0.00022191,2]
[363070343,1748566252910,-1715.83,0.00022191,2]
[363070344,1748566252919,-420.0,0.00022191,2]
[363070345,1748566252929,-923.18,0.00022191,2]
[363070346,1748566252938,-420.0,0.00022191,2]
[363070347,1748566252947,-420.0,0.00022191,2]
[363070348,1748566252958,-577.37,0.00022191,2]
[363070349,1748566252970,-1205.33,0.00022191,2]
[363070350,1748566252979,-898.28,0.00022191,2]
[363070351,1748566252989,-456.45,0.00022191,2]
[363070352,1748566252998,-583.32,0.00022191,2]
[363070353,1748566253008,-486.90610954,0.00022191,2]
[363070354,1748566253018,-698.8,0.00022191,2]
[363070355,1748566253028,-597.43,0.00022191,2]
[363070356,1748566253038,-1092.62,0.00022191,2]
[363070357,1748566253048,-865.39,0.00022191,2]
[363070358,1748566253058,-400.0,0.00022191,2]
[363070359,1748566253069,-420.0,0.00022191,2]
[363070360,1748566253078,-420.0,0.00022191,2]
[363070361,1748566253088,-780.99,0.00022191,2]
[363070362,1748566253098,-420.0,0.00022191,2]
[363070363,1748566253108,-759.56,0.00022191,2]
[363070364,1748566253117,-830.79,0.00022191,2]
[363070365,1748566253129,-618.53,0.00022191,2]
[363070366,1748566253138,-420.0,0.00022191,2]
[363070367,1748566253148,-420.0,0.00022191,2]
[363070368,1748566253157,-420.0,0.00022191,2]
[363070369,1748566253166,-1564.64,0.00022191,2]
[363070370,1748566253175,-506.54,0.00022191,2]
[363070371,1748566253184,-1486.64,0.00022191,2]
[363070372,1748566253194,-420.0,0.00022191,2]
[363070373,1748566253203,-480.37,0.00022191,2]
[363070374,1748566253213,-420.0,0.00022191,2]
[363070375,1748566253222,-420.0,0.00022191,2]
[363070376,1748566253232,-457.38,0.00022191,2]
[363070377,1748566253241,-420.0,0.00022191,2]
[363070378,1748566253251,-420.0,0.00022191,2]
[363070379,1748566253261,-589.31,0.00022191,2]
[363070380,1748566253271,-592.76,0.00022191,2]
[363070381,1748566253281,-509.21,0.00022191,2]
[363070382,1748566253290,-1267.57,0.00022191,2]
[363070383,1748566253299,-721.82,0.00022191,2]
[363070384,1748566253310,-1120.6,0.00022191,2]
[363070385,1748566253320,-420.0,0.00022191,2]
[363070386,1748566253330,-1220.68,0.00022191,2]
[363070387,1748566253340,-463.61,0.00022191,2]
[363070388,1748566253349,-420.0,0.00022191,2]
[363070389,1748566253358,-1421.12,0.00022191,2]
[363070390,1748566253368,-420.0,0.00022191,2]
[363070391,1748566253377,-546.31,0.00022191,2]
[363070392,1748566253387,-2622.91,0.00022191,2]
[363070393,1748566253396,-420.0,0.00022191,2]
[363070394,1748566253407,-420.0,0.00022191,2]
[363070395,1748566253418,-1973.6,0.00022191,2]
[363070396,1748566253427,-491.02,0.00022191,2]
[363070397,1748566253437,-482.2,0.00022191,2]
[363070398,1748566253447,-1104.21,0.00022191,2]
[363070399,1748566253456,-837.54,0.00022191,2]
[363070400,1748566253467,-420.0,0.00022191,2]
[363070401,1748566253477,-420.0,0.00022191,2]
[363070402,1748566253486,-550.97,0.00022191,2]
[363070403,1748566253496,-420.0,0.00022191,2]
[363070404,1748566253506,-420.0,0.00022191,2]
[363070405,1748566253516,-207.36030717,0.00022191,2]
[363070406,1748566254528,-276.0,0.00021916,2]
[363070407,1748566254538,-1811.08,0.00021917,2]
[363070408,1748566254548,-420.0,0.00021917,2]
[363070409,1748566254557,-420.0,0.00021917,2]
[363070410,1748566254567,-167.29765937,0.00021917,2]
[363070411,1748566254592,-252.70234063,0.00021917,2]
[363070412,1748566254602,-257.35969283,0.00022191,2]
[363070413,1748566254612,-420.0,0.00022191,2]
[363070414,1748566254625,-205.90364185,0.00022191,2]
[363070415,1748566254657,-214.09635815,0.00022191,2]
[363070416,1748566254668,-420.0,0.00022191,2]
[363070417,1748566254679,-632.0283331,0.00022191,2]
[363070418,1748566254691,-709.2916669,0.00022191,2]
[363070419,1748566254701,-595.89,0.00022191,2]
[363070420,1748566254711,-1309.8183331,0.00022191,2]
[363070421,1748566254723,-116.9216669,0.00022191,2]
[363070422,1748566254733,-520.96112087,0.00022191,2]
[363070423,1748566254743,-420.0,0.00022191,2]
[363070424,1748566254753,-420.0,0.00022191,2]
[363070425,1748566254763,-556.65,0.00022191,2]
[363070426,1748566254773,-498.95,0.00022191,2]
[363070427,1748566254783,-157.4172122,0.00022191,2]
[363070428,1748566254796,-424.9027878,0.00022191,2]
[363070429,1748566254806,-1035.81721234,0.00022191,2]
[363070430,1748566254831,-523.48278766,0.00022191,2]
[363070431,1748566254841,-37.29548834,0.00022191,2]
[363070432,1748566254854,-537.92451166,0.00022191,2]
[363070433,1748566254864,-420.0,0.00022191,2]
[363070434,1748566254876,-420.0,0.00022191,2]
[363070435,1748566254886,-420.0,0.00022191,2]
[363070436,1748566254895,-420.0,0.00022191,2]
[363070437,1748566254906,-420.0,0.00022191,2]
[363070438,1748566254915,-420.0,0.00022191,2]
[363070439,1748566254925,-365.6813045,0.00022191,2]
[363070440,1748566254937,-54.3186955,0.00022191,2]
[363070441,1748566254948,-277.98055844,0.00022191,2]
[363070442,1748566254957,-420.0,0.00022191,2]
[363070443,1748566254967,-427.80579049,0.00022191,2]
[363070444,1748566254978,-420.0,0.00022191,2]
[363070445,1748566254987,-295.46613986,0.00022191,2]
[363070446,1748566255011,-124.53386014,0.00022191,2]
[363070447,1748566255022,-420.0,0.00022191,2]
[363070448,1748566255031,-84.63131961,0.00022191,2]
[363070449,1748566255279,-0.00815288,0.00022191,2]
[363070450,1748566255678,-420.0,0.00021917,2]
[363070451,1748566255688,-491.13052751,0.00022191,2]
[363070452,1748566255698,-1499.85,0.00022191,2]
[363070453,1748566255708,-523.51,0.00022191,2]
[363070454,1748566255718,-519.35141705,0.00022191,2]
[363070455,1748566255728,-420.0,0.00022191,2]
[363070456,1748566255739,-420.0,0.00022191,2]
[363070457,1748566255748,-420.0,0.00022191,2]
[363070458,1748566255758,-1209.76,0.00022191,2]
[363070459,1748566255768,-420.0,0.00022191,2]
[363070460,1748566255778,-1325.67,0.00022191,2]
[363070461,1748566255788,-420.0,0.00022191,2]
[363070462,1748566255798,-425.33134861,0.00022191,2]
[363070463,1748566255808,-420.0,0.00022191,2]
[363070464,1748566255818,-420.0,0.00022191,2]
[363070465,1748566255828,-2706.1,0.00022191,2]
[363070466,1748566255838,-439.15,0.00022191,2]
[363070467,1748566255848,-420.0,0.00022191,2]
[363070468,1748566255858,-1028.16,0.00022191,2]
[363070469,1748566255868,-825.56,0.00022191,2]
[363070470,1748566255881,-699.92,0.00022191,2]
[363070471,1748566255891,-420.0,0.00022191,2]
[363070472,1748566255900,-1849.45,0.00022191,2]
[363070473,1748566255910,-420.0,0.00022191,2]
[363070474,1748566255919,-425.62,0.00022191,2]
[363070475,1748566255930,-420.0,0.00022191,2]
[363070476,1748566255939,-423.12433536,0.00022191,2]
[363070477,1748566255949,-420.0,0.00022191,2]
[363070478,1748566255958,-420.0,0.00022191,2]
[363070479,1748566255968,-420.0,0.00022191,2]
[363070480,1748566255979,-503.57,0.00022191,2]
[363070481,1748566256215,-420.0,0.00022191,2]
[363070482,1748566256224,-420.0,0.00022191,2]
[363070483,1748566256234,-420.0,0.00022191,2]
[363070484,1748566256243,-420.0,0.00022191,2]
[363070485,1748566256253,-420.0,0.00022191,2]
[363070486,1748566256262,-1140.13,0.00022191,2]
[363070487,1748566256272,-734.85,0.00022191,2]
[363070488,1748566256281,-959.15,0.00022191,2]
[363070489,1748566256291,-574.26,0.00022191,2]
[363070490,1748566256300,-425.19613829,0.00022191,2]
[363070491,1748566256310,-420.0,0.00022191,2]
[363070492,1748566256319,-420.0,0.00022191,2]
[363070493,1748566256329,-420.0,0.00022191,2]
[363070494,1748566256338,-420.0,0.00022191,2]
[363070495,1748566256348,-554.37,0.00022191,2]
[363070496,1748566256358,-420.0,0.00022191,2]
[363070497,1748566256368,-3023.11,0.00022191,2]
[363070498,1748566256380,-420.0,0.00022191,2]
[363070499,1748566256389,-367.14887992,0.00022191,2]
[363070500,1748566256399,-511.43,0.00022191,2]
[363070501,1748566256409,-420.0,0.00022191,2]
[363070502,1748566256419,-1364.66,0.00022191,2]
[363070503,1748566256428,-439.18,0.00022191,2]
[363070504,1748566256438,-420.0,0.00022191,2]
[363070505,1748566256447,-879.33,0.00022191,2]
[363070506,1748566256457,-420.0,0.00022191,2]
[363070507,1748566256467,-420.0,0.00022191,2]
[363070508,1748566256476,-420.0,0.00022191,2]
[363070509,1748566256486,-270.59,0.00022191,2]
[363070510,1748566256495,-1064.15,0.00022191,2]
[363070511,1748566256505,-420.0,0.00022191,2]
[363070512,1748566256514,-502.56,0.00022191,2]
[363070513,1748566256524,-491.08,0.00022191,2]
[363070514,1748566256534,-420.0,0.00022191,2]
[363070515,1748566256544,-420.0,0.00022191,2]
[363070516,1748566256553,-1807.3,0.00022191,2]
[363070517,1748566256562,-420.0,0.00022191,2]
[363070518,1748566256572,-1101.13,0.00022191,2]
[363070519,1748566256581,-507.56,0.00022191,2]
[363070520,1748566256594,-420.0,0.00022191,2]
[363070521,1748566256603,-420.0,0.00022191,2]
[363070522,1748566256613,-186.36635541,0.00022191,2]
[363070523,1748566256624,-1688.27,0.00022191,2]
[363070524,1748566256634,-420.0,0.00022191,2]
[363070525,1748566256644,-420.0,0.00022191,2]
[363070526,1748566256653,-1402.37,0.00022191,2]
[363070527,1748566256663,-430.02249561,0.00022191,2]
[363070528,1748566256674,-420.0,0.00022191,2]
[363070529,1748566256683,-420.0,0.00022191,2]
[363070530,1748566256692,-443.72,0.00022191,2]
[363070531,1748566256701,-420.0,0.00022191,2]
[363070532,1748566256711,-841.23,0.00022191,2]
[363070533,1748566256720,-420.0,0.00022191,2]
[363070534,1748566256730,-420.0,0.00022191,2]
[363070535,1748566256740,-437.5,0.00022191,2]
[363070536,1748566256750,-420.0,0.00022191,2]
[363070537,1748566256760,-420.0,0.00022191,2]
[363070538,1748566256770,-1553.79,0.00022191,2]
[363070539,1748566256780,-420.0,0.00022191,2]
[363070540,1748566256790,-420.0,0.00022191,2]
[363070541,1748566256799,-1525.89,0.00022191,2]
[363070542,1748566256808,-420.0,0.00022191,2]
[363070543,1748566256818,-1489.21,0.00022191,2]
[363070544,1748566256827,-420.0,0.00022191,2]
[363070545,1748566256836,-420.0,0.00022191,2]
[363070546,1748566256845,-536.64,0.00022191,2]
[363070547,1748566256855,-11168.45,0.00022191,2]
[363070548,1748566256864,-821.0,0.00022191,2]
[363070549,1748566256877,-420.0,0.00022191,2]
[363070550,1748566256886,-431.93,0.00022191,2]
[363070551,1748566256895,-1231.82,0.00022191,2]
[363070552,1748566256905,-166.42065056,0.00022191,2]
[363070553,1748566256914,-1332.92,0.00022191,2]
[363070554,1748566256924,-420.0,0.00022191,2]
[363070555,1748566256933,-420.0,0.00022191,2]
[363070556,1748566256943,-1332.31,0.00022191,2]
[363070557,1748566256952,-151.94543118,0.00022191,2]
[363070558,1748566256961,-1027.18,0.00022191,2]
[363070559,1748566256971,-420.0,0.00022191,2]
[363070560,1748566256980,-511.8,0.00022191,2]
[363070561,1748566256990,-420.0,0.00022191,2]
[363070562,1748566257000,-420.0,0.00022191,2]
[363070563,1748566257010,-740.98,0.00022191,2]
[363070564,1748566257020,-420.0,0.00022191,2]
[363070565,1748566257030,-206.06566643,0.00022191,2]
[363070566,1748566257040,-420.0,0.00022191,2]
[363070567,1748566257050,-2250.87,0.00022191,2]
[363070568,1748566257060,-528.34,0.00022191,2]
[363070569,1748566257070,-1933.09,0.00022191,2]
[363070570,1748566257079,-816.23,0.00022191,2]
[363070571,1748566257090,-420.0,0.00022191,2]
[363070572,1748566257101,-1291.5,0.00022191,2]
[363070573,1748566257110,-420.0,0.00022191,2]
[363070574,1748566257119,-420.0,0.00022191,2]
[363070575,1748566257131,-420.0,0.00022191,2]
[363070576,1748566257140,-420.0,0.00022191,2]
[363070577,1748566257149,-363.67852124,0.00022191,2]
[363070578,1748566257163,-1345.57147876,0.00022191,2]
[363070579,1748566257172,-800.83,0.00022191,2]
[363070580,1748566257182,-1752.37,0.00022191,2]
[363070581,1748566257193,-420.0,0.00022191,2]
[363070582,1748566257203,-420.0,0.00022191,2]
[363070583,1748566257212,-420.0,0.00022191,2]
[363070584,1748566257223,-433.66913724,0.00022191,2]
[363070585,1748566257232,-939.86,0.00022191,2]
[363070586,1748566257243,-506.72,0.00022191,2]
[363070587,1748566257253,-1820.43,0.00022191,2]
[363070588,1748566257263,-420.0,0.00022191,2]
[363070589,1748566257273,-632.41,0.00022191,2]
[363070590,1748566257283,-576.38,0.00022191,2]
[363070591,1748566257292,-420.0,0.00022191,2]
[363070592,1748566257302,-420.0,0.00022191,2]
[363070593,1748566257312,-420.0,0.00022191,2]
[363070594,1748566257323,-499.3,0.00022191,2]
[363070595,1748566257333,-528.57,0.00022191,2]
[363070596,1748566257343,-1089.3,0.00022191,2]
[363070597,1748566257353,-1389.97,0.00022191,2]
[363070598,1748566257363,-420.0,0.00022191,2]
[363070599,1748566257373,-420.0,0.00022191,2]
[363070600,1748566257383,-736.38,0.00022191,2]
[363070601,1748566257392,-420.0,0.00022191,2]
[363070602,1748566257402,-1648.28,0.00022191,2]
[363070603,1748566257411,-557.62,0.00022191,2]
[363070604,1748566257420,-839.91,0.00022191,2]
[363070605,1748566257430,-420.0,0.00022191,2]
[363070606,1748566257440,-1226.43,0.00022191,2]
[363070607,1748566257450,-420.0,0.00022191,2]
[363070608,1748566257459,-425.33215274,0.00022191,2]
[363070609,1748566257469,-420.0,0.00022191,2]
[363070610,1748566257479,-3167.28,0.00022191,2]
[363070611,1748566257488,-280.55,0.00022191,2]
[363070612,1748566257498,-420.0,0.00022191,2]
[363070613,1748566257507,-15869.81,0.00022191,2]
[363070614,1748566257516,-420.0,0.00022191,2]
[363070615,1748566257526,-1555.5,0.00022191,2]
[363070616,1748566257535,-2198.86,0.00022191,2]
[363070617,1748566257544,-565.62,0.00022191,2]
[363070618,1748566257554,-7218.65,0.00022191,2]
[363070619,1748566257563,-653.18,0.00022191,2]
[363070620,1748566257572,-3060.58,0.00022191,2]
[363070621,1748566257581,-420.0,0.00022191,2]
[363070622,1748566257592,-1009.91,0.00022191,2]
[363070623,1748566257603,-420.0,0.00022191,2]
[363070624,1748566257613,-420.0,0.00022191,2]
[363070625,1748566257625,-420.0,0.00022191,2]
[363070626,1748566257635,-420.0,0.00022191,2]
[363070627,1748566257645,-602.82,0.00022191,2]
[363070628,1748566257654,-420.0,0.00022191,2]
[363070629,1748566257663,-420.0,0.00022191,2]
[363070630,1748566257673,-491.02,0.00022191,2]
[363070631,1748566257683,-420.0,0.00022191,2]
[363070632,1748566257693,-420.0,0.00022191,2]
[363070633,1748566257702,-14384.92,0.00022191,2]
[363070634,1748566257712,-420.0,0.00022191,2]
[363070635,1748566257721,-185.31199861,0.00022191,2]
[363070636,1748566257731,-420.0,0.00022191,2]
[363070637,1748566257740,-4057.99,0.00022191,2]
[363070638,1748566257749,-969.57,0.00022191,2]
[363070639,1748566257758,-2303.39,0.00022191,2]
[363070640,1748566257768,-420.0,0.00022191,2]
[363070641,1748566257777,-16029.67,0.00022191,2]
[363070642,1748566257786,-420.0,0.00022191,2]
[363070643,1748566257794,-420.0,0.00022191,2]
[363070644,1748566257805,-420.0,0.00022191,2]
[363070645,1748566257818,-420.0,0.00022191,2]
[363070646,1748566257828,-1747.33,0.00022191,2]
[363070647,1748566257837,-420.0,0.00022191,2]
[363070648,1748566257846,-879.2,0.00022191,2]
[363070649,1748566257855,-437.46,0.00022191,2]
[363070650,1748566257864,-420.0,0.00022191,2]
[363070651,1748566257877,-681.49,0.00022191,2]
[363070652,1748566257886,-1056.97,0.00022191,2]
[363070653,1748566257895,-1805.0,0.00022191,2]
[363070654,1748566257905,-420.0,0.00022191,2]